{"text_format":"1","workbook":"xlsx","n_sheets":7,"sheets":["Анкета 1","Анкета 2","Прил.1","Прил.2","Data","Lists","Fit"],"not_rendered":{"charts":0,"images":0,"macros":1,"external_links":0,"defined_names":90,"comments":0,"pivot_tables":0},"unopened":[],"bounds":{"document_bytes":16777216,"sheet_cells":100000,"rows_first":2000,"rows_last":500,"rows_between":2000,"halvings":0,"cell_chars":16384,"cell_head_chars":4096},"cells_cut":0,"cells_raw":0,"read":"whole","date_system":"1900"}

{"sheet":"Анкета 1","index":0,"n_rows":216,"n_cols":8,"rows_kept":216,"cut":false,"hidden":false,"merged":[[49,1,49,3],[50,1,50,3],[35,4,35,6],[14,3,14,6],[38,1,38,6],[15,3,15,6],[14,1,14,2],[67,1,67,6],[27,1,27,6],[39,1,39,6],[41,1,41,6],[65,1,65,6],[66,1,66,6],[26,1,26,6],[15,1,15,2],[29,1,29,5],[32,4,32,6],[33,4,33,6],[36,4,36,6],[31,4,31,6],[44,1,44,3],[45,1,45,3],[42,1,42,6],[46,1,46,3],[47,1,47,3],[48,1,48,3],[12,3,12,6],[6,1,6,2],[7,1,7,2],[7,3,7,6],[9,1,9,2],[10,1,10,2],[11,1,11,2],[6,3,6,6],[12,1,13,1],[9,3,9,6],[13,3,13,6],[8,1,8,2],[10,3,10,6],[11,3,11,6],[34,4,34,6],[17,1,17,7],[183,5,183,6],[184,5,184,6],[87,1,87,6],[88,1,88,6],[59,2,59,3],[74,3,74,4],[58,2,58,3],[92,1,92,6],[104,1,104,6],[105,1,105,6],[179,1,179,5],[181,5,181,6],[176,1,176,6],[177,2,177,6],[125,1,125,6],[110,2,110,5],[121,1,121,6],[118,1,118,6],[165,1,165,6],[163,1,163,5],[182,5,182,6],[167,1,167,5],[127,1,127,7],[55,2,55,3],[56,2,56,3],[57,2,57,3],[52,2,52,5],[60,2,60,3],[61,2,61,3],[63,1,63,6],[78,2,78,4],[53,2,53,5],[73,3,73,4],[0,1,0,6],[3,2,3,6],[5,1,5,6],[192,1,192,2],[192,4,192,5],[191,1,191,6],[189,1,189,6],[71,3,71,4],[72,3,72,4],[75,3,75,4],[76,3,76,4],[69,1,69,5],[186,5,186,6],[187,5,187,6],[111,2,111,3],[112,2,112,3],[113,2,113,3],[114,2,114,3],[115,2,115,3],[185,5,185,6],[90,1,90,6],[91,1,91,6],[119,1,119,6],[122,1,122,6],[210,1,210,2],[194,1,194,6],[195,1,195,6],[196,1,196,6],[197,1,197,6],[203,1,203,2],[204,1,204,2],[209,1,209,2],[198,1,198,6],[161,1,161,2],[161,4,161,5],[94,1,94,6],[95,1,95,6],[96,1,96,6],[101,1,101,6],[102,1,102,6],[98,1,98,6],[99,1,99,6],[124,1,124,6],[160,1,160,6],[147,1,147,6],[153,1,153,6],[144,1,144,5],[107,1,107,6],[108,1,108,6]]}
[null,"АНКЕТА ЗАЛОГОДАТЕЛЯ (ЮРИДИЧЕСКОГО ЛИЦА)"]
[null,"Версия 28.10.2021"]
[null,"Дата оформления "]
[null,"Место предоставления "]
[]
[null,"Общие сведения об организации"]
[null,"Полное наименование: "]
[null,"Дата регистрации: "]
[null,"Данные о регистрации организации:",null,"ИНН:",null,"ОГРН:"]
[null,"Место постановки на налоговый учет:\n(информация предоставляется за последний календарный год с указанием причин изменения (в случае наличия)"]
[null,"Принадлежность к Группе компаний:"]
[null,"Размер уставного капитала (оплачен полностью или нет): "]
[null,"Адрес местонахождения и почтовый адрес:\n(договор аренды помещения является приложением к Анкете, в случае наличия помещения в собственности предоставляются документы, подтверждающие права собственности)","Юридический адрес:"]
[null,null,"Адрес местонахождения:"]
[null,"Вид деятельности Заемщика (фактический):"]
[null,"Наличие филиалов, отделений, представительств и т.п.: (адреса местонахождений)"]
[]
[null,"Руководство организации"]
[]
[null,"Должность","Ф.И.О.","ИНН","Образование","Стаж работы в организации","Срок полномочий","Участие в капитале Общества (доля в %)"]
[]
[]
[]
[]
[]
[]
[null,"Комментарии (при наличии):"]
[null,"Например: Полномочия единоличного исполнительного органа (генерального директора) в полном объеме переданы управляющей организации - ООО «________» на неопределенный срок (основание-Выписка №1 из протокола внеочередного Общего собрания от _________ г., Договор № _____ от ________ г. в редакции Дополнительного соглашения №____ от ________ г.). и тд."]
[]
[null,"Изменения единоличного исполнительного органа произошли три и более раз за последний календарный год:",null,null,null,null,"Да/Нет"]
[]
[null,"Должность","Ф.И.О ","Срок полномочий","Причины смены руководителя"]
[]
[]
[]
[]
[]
[]
[]
[null,"В случае отсутствия в штате должности главного бухгалтера или бухгалтерской службы, указать каким образом ведется бухгалтерский учет (ведение бухгалтерского учета передано на договорных началах специализированной организации (аудиторской фирме)/ бухгалтеру-специалисту (индивидуальному аудитору)/ руководитель организации ведет бухгалтерский учет лично/др.). Дополнительно предоставить информацию о лице, исполняющим обязанности главного бухгалтера, или заключенный договор аутсорсинга."]
[]
[null,"Сведения об участниках (акционерах) организации"]
[null,"владеющих не менее чем 1% (одним процентом) его уставного капитала или не менее чем 1% (процентами) его обыкновенных акций с учётом данных о клиентах номинальных держателей:"]
[]
[null,"Ф.И.О. / Наименование организации (вкл. организационно-правовую форму)",null,null,"ИНН","Доля в УК, %","Дата внесения в ЕРГЮЛ"]
[]
[]
[]
[]
[]
[null,"ИТОГО",null,null,null,{"$f":"SUM(F46:F50)","v":0}]
[]
[null,null,"Сведения о бенефициарных владельцах"]
[null,null,"физических лицах, которые, в конечном счете, прямо или косвенно (через третьих лиц, в том числе через юридическое лицо, нескольких юридических лиц либо группу связанных юридических лиц) владеют (имеют преобладающее участие более 25 процентов в капитале) организацией – юридическим лицом либо прямо или косвенно контролирует действия Заемщика, в том числе имеет возможность определять решения, принимаемые Заемщиком:"]
[]
[null,null,"Ф.И.О.",null,"ИНН","Контролируемая доля, %"]
[]
[]
[]
[]
[]
[null,null,"ИТОГО",null,null,{"$f":"SUM(F57:F61)","v":0}]
[]
[null,"Наименование и ИНН дочерних и зависимых компаний, входящих с юр.лицом, подавшим заявку, в состав финансово-промышленных групп и холдингов (в том числе неформальных), схема операционных и финансовых взаимоотношений между компаниями холдинга указываются в Приложении 1, в Приложении 5 к Заявке-Анкете:"]
[]
[null,"Описание деятельности организации в разрезе ее основных видов (с указанием срока ведения). Отражение особенностей деятельности организации (наличие сезонного характера деятельности, использование давальческих схем, работа по агентским договорам или договорам комиссии и др.): "]
[null,"Описание деятельности организации в разрезе ее основных видов "]
[null,"(направления деятельности, выпускаемая/ реализуемая продукция/услуги, описание схемы взаимодействия (бизнес-модели), материально технической базы (наличие собственных/ арендованных активов) клиента, возможность увеличения объема продаж за счет избытка мощностей или иных способов (указать), наличие сезонности/цикличности в бизнесе (указать причины, срок цикла производства и реализации, факторы, влияющие на изменение цикла) и пр.)"]
[]
[null,"Наличие лицензий и разрешений, срок их действия:",null,null,null,null,"Да/Нет"]
[]
[null,"Сокращенное наименование лицензиата (Компании, ИП)","ИНН лицензиата","Основные виды деятельности Компании подлежащие лицензированию",null,"Наименование лицензирующего органа","Состояние/срок окончания"]
[]
[]
[]
[]
[]
[]
[null,null,"Наличие рейтингов долгосрочной кредитоспособности: ",null,null,"Да/Нет"]
[]
[null,null,"Рейтинговое агентство","Рейтинг","Дата присвоения рейтинга","Дата пересмотра"]
[null,null,"Standard & Poor’s"]
[null,null,"Fitch Ratings"]
[null,null,"Moody's "]
[null,null,"Эксперт РА"]
[null,null,"АКРА"]
[]
[null,"Общая характеристика ситуации в основной отрасли деятельности организации: "]
[null,"Общая характеристика ситуации в основной отрасли деятельности организации"]
[]
[null,"Внешние условия деятельности:"]
[null,"Внешние условия деятельности"]
[null,"- сезонные факторы и их влияние на деятельность организации;\n- наличие имущества ограниченного оборота;\n- необходимость осуществления дорогостоящих природоохранных мероприятий;\n- географическое положение, экономические условия региона, налоговые условия региона;\n- имеющиеся торговые ограничения, финансовое стимулирование (использование программ субсидирования или иной гос.поддержки)."]
[]
[null,"Внутренние условия деятельности:"]
[null,"Внутренние условия деятельности"]
[null,"- основные направления деятельности, основные виды выпускаемой продукции, текущие и планируемые объемы производства;\n- состав основного и вспомогательного производства;\n- загрузка производственных мощностей;\n- объекты непроизводственной сферы и затраты на их содержание;     \n- основные объекты, не завершенные строительством, размер средств, необходимых для завершения строительных работ, и срок возможного пуска в эксплуатацию объектов;     \n- перечень структурных подразделений и схема структуры управления организацией;     \n- наличие собственных либо находящихся в пользовании на основании договора аренды[1] основных средств или иного имущества, необходимых для осуществления деятельности (производственных мощностей, складских помещений, транспортных средств, торговых точек, офисных помещений и прочих) с их указанием."]
[]
[null,"Доля организации на рынке (область (край, республика), Федеральный округ, страна):"]
[null,"Доля организации на рынке "]
[]
[null,"Основные конкуренты: "]
[null,"Основные конкуренты"]
[]
[null,"Конкурентные преимущества организации и недостатки:"]
[null,"Конкурентные преимущества организации и недостатки"]
[]
[null,"Планы по расширению/ сохранению/ уменьшению объемов бизнеса  в период действия кредитного продукта:"]
[null,"Планы по расширению/ сохранению/ уменьшению объемов бизнеса  в период действия кредитного продукта:"]
[]
[null,null,"Структура выручки по видам валют, тыс. руб."]
[null,null,null,null,"Размер выручки за последние 12 мес.","Доля, %"]
[null,null,"Выручка, получаемая в рублях "]
[null,null,"Выручка, получаемая в долларах США"]
[null,null,"Выручка, получаемая в ЕВРО"]
[null,null,"ИТОГО",null,{"$f":"SUM(E113:E115)","v":0},{"$f":"SUM(F113:F115)","v":0}]
[]
[]
[null,"Данные о внешнеэкономической деятельности (импорт сырья и материалов, продукции) (наличие/отсутствие; в случае наличия указывается краткое описание внешнеэкономической деятельности): "]
[null,"Данные о внешнеэкономической деятельности (импорт сырья и материалов, продукции) (наличие/отсутствие; в случае наличия указывается краткое описание внешнеэкономической деятельности): "]
[]
[null,"Доля импорта в деятельности (в разрезе стран) за последние 4 календарных квартала:"]
[null,"Доля импорта в деятельности"]
[]
[null," Действующий портфель контрактов:"]
[null,"Рекомендованная форма предоставления приведена в  Приложении 2 к Заявке-Анкете"]
[]
[null,"Основные контрагенты. Объем продаж / закупок за 12 мес."]
[null,"Контрагент","продукция/услуга","ИНН","тыс. руб.","доля, %","Условия расчетов\nпо договору с указанием количества дней отсрочки","Компания аффилирована с Заемщиком"]
[null,"Покупатели"]
[null,null,null,null,null,{"$f":"IFERROR($E131/$E$136,\"\")","v":""}]
[null,null,null,null,null,{"$f":"IFERROR($E132/$E$136,\"\")","v":""}]
[null,null,null,null,null,""]
[null,null,null,null,null,""]
[null,"ПРОЧИЕ",null,null,null,""]
[null,"ИТОГО",null,null,{"$f":"SUM(E131:E135)","v":0},{"$f":"SUM(F131:F135)","v":0}]
[null,"Поставщики"]
[null,null,null,null,null,{"$f":"IFERROR($E138/$E$143,\"\")","v":""}]
[null,null,null,null,null,{"$f":"IFERROR($E139/$E$143,\"\")","v":""}]
[null,null,null,null,null,""]
[null,null,null,null,null,""]
[null,"ПРОЧИЕ",null,null,null,""]
[null,"ИТОГО",null,null,{"$f":"SUM(E138:E142)","v":0},{"$f":"SUM(F138:F142)","v":0}]
[]
[null,"Информация о наличии судебных разбирательств:",null,null,null,null,"Да/Нет"]
[]
[null,"Истец","Ответчик","Сумма иска, руб.","Причина судебного разбирательства, комментарии","Номер и дата иска","Текущее состояние дела, перспективы судебного решения"]
[null,"Решение судом не принято "]
[]
[]
[]
[]
[]
[null,"Принято решение судом"]
[]
[]
[]
[]
[]
[]
[null,"Прочая информация"]
[null,"Общая численность работающих в организации, человек",null,null,"Ежемесячный ФОТ, руб."]
[]
[null,"Информация о наличии / отсутствии просроченной задолженности перед работниками по заработной плате с указанием среднемесячной заработной платы на одного работника:",null,null,null,null,"Да/Нет"]
[]
[null,"Заполняется Клиентом самостоятельно с указанием суммы задолженности, срока возникновения, причины возникновения, сроков погашения задолженности"]
[]
[null,"Информация о наличии/отсутствии задолженности перед бюджетом/ внебюджетными фондами:",null,null,null,null,"Да/Нет"]
[]
[null,null,"Наименование ИФНС РФ","Сумма задолженности, руб.","Дата возникновения","Планируемая дата погашения"]
[]
[]
[]
[]
[]
[]
[null,"Взаимоотношения организации с банками"]
[null,"Обслуживающие банки:"]
[]
[null,"Наличие Картотеки в банках с указанием суммы и наименования банка:",null,null,null,null,"Да/Нет"]
[]
[null,"Наименование кредитной организации","Сумма задолженности, рублей","Дата возникновения","Дата планируемого погашения","Причина возникновения"]
[]
[]
[]
[]
[]
[null,"ИТОГО",{"$f":"SUM(C183:C187)","v":0}]
[]
[null,"Чистый кредитовый оборот по счетам Заемщика (поступления выручки) за последние 12 месяцев"]
[]
[null,"Взаимоотношения с АО «АБ «РОССИЯ»"]
[null,"Наличие счета в АО АБ «РОССИЯ»:",null,"да/нет","Дата открытия счета в АО АБ «РОССИЯ»:"]
[]
[null,"Должностное лицо, уполномоченное руководителем организации для осуществления контактов с Банком:"]
[]
[]
[null," (Должность, Ф.И.О.)"]
[null,"Обработка персональных данных, указанных в настоящей заявке-анкете, осуществляется Акционерным обществом «Акционерный Банк «РОССИЯ», расположенным по адресу Россия, 191124, г. Санкт-Петербург, пл. Растрелли, д. 2, лит. А (далее – Банк), с целью принятия решения о предоставлении услуг по кредитованию юридических лиц/индивидуальных предпринимателей, в связи с заключением и исполнением Кредитного договора (далее – Договор). Обработка осуществляется как с использованием средств автоматизации, так и без их использования следующими способами: сбор, запись, систематизация, накопление, хранение, уточнение (обновление, изменение), извлечение, использование, передача (предоставление, доступ) обезличивание, блокирование, удаление, уничтожение. Настоящая заявка-анкета, содержащиеся в ней персональные данные подлежат уничтожению по истечении 5 (пяти) лет после исполнения обязательств по Договору, если иное не установлено законодательством Российской Федерации."]
[]
[null,"e-mail",null,"моб. тел.",null,"e-mail"]
[]
[]
[]
[null,"(Должность руководителя)",null,null,"(Ф.И.О. руководителя)",null,"(Подпись руководителя)"]
[]
[null,"e-mail",null,"моб. тел.",null,"e-mail"]
[]
[]
[]
[null,"(Должность гл. бухгалтера)",null,null,"(Ф.И.О. гл. бухгалтера)",null,"(Подпись гл. бухгалтера)"]
[]
[null,"e-mail",null,"моб. тел.",null,"e-mail"]
[]
[]
[null,null,"М.П.",null,null,null,"20  г."]

{"sheet":"Анкета 2","index":1,"n_rows":86,"n_cols":10,"rows_kept":86,"cut":false,"hidden":false,"merged":[[30,1,30,9],[1,1,1,9],[3,1,3,9],[10,1,10,9],[11,1,11,9],[23,1,23,9],[13,1,13,9],[21,1,21,9],[20,1,20,9],[31,1,31,9],[33,1,33,9],[40,1,40,9],[41,1,41,9],[43,1,43,9],[50,1,50,9],[51,1,51,9],[53,1,53,9],[60,1,60,9],[61,1,61,9],[63,1,63,8],[74,1,74,2],[74,4,74,6],[74,8,74,9],[65,1,65,9],[66,1,66,9],[67,1,67,9],[68,1,68,9],[70,8,70,9],[73,1,73,2],[73,4,73,6],[73,8,73,9],[76,8,76,9],[79,1,79,2],[79,4,79,6],[79,8,79,9],[80,1,80,2],[80,4,80,6],[80,8,80,9]]}
[]
[null,{"$f":"\"КРЕДИТНАЯ ИСТОРИЯ ЗА 12 МЕСЯЦЕВ ПО СОСТОЯНИЮ НА \" & TEXT(form_date,\"ДД.ММ.ГГГ\")","v":"КРЕДИТНАЯ ИСТОРИЯ ЗА 12 МЕСЯЦЕВ ПО СОСТОЯНИЮ НА 00.01.1900"}]
[]
[null,"Банковские кредиты"]
[null,"Наименование кредитора","Дата договора о кредитовании","Валюта кредита","Максимальный лимит кредитования,\nтыс. руб.","Остаток ссудной задолженности,\nтыс. руб.","Вид","Ставка,\n% годовых","Дата возврата по договору","Вид обеспечения"]
[]
[]
[]
[null,"ИТОГО",null,null,{"$f":"SUM(E6:E8)","v":0},{"$f":"SUM(F6:F8)","v":0}]
[]
[null,"Комментарии:"]
[]
[]
[null,"Небанковские ссуды, займы"]
[null,"Наименование кредитора","Дата договора о кредитовании","Валюта кредита","Максимальный лимит кредитования,\nтыс. руб.","Остаток ссудной задолженности,\nтыс. руб.","Вид","Ставка,\n% годовых","Дата возврата по договору","Вид обеспечения"]
[]
[]
[]
[null,"ИТОГО",null,null,{"$f":"SUM(E16:E18)","v":0},{"$f":"SUM(F16:F18)","v":0}]
[]
[null,"Комментарии:"]
[]
[]
[null,"Банковские гарантии/непокрытые аккредитивы"]
[null,"Гарант","Бенефициар","ИНН бенефициара","Вид гарантии","Сумма лимита,\nтыс. руб.","Сумма гарантии,\nтыс. руб.","Размер комиссии,\n% годовых","Дата окончания действия","Вид обеспечения"]
[]
[]
[]
[null,"ИТОГО",null,null,null,{"$f":"SUM(F26:F28)","v":0},{"$f":"SUM(G26:G28)","v":0}]
[]
[null,"Комментарии:"]
[]
[]
[null,"Выданные поручительства/предоставленные обеспечения (на последнюю отчетную дату)"]
[null,"Наименование Банка-кредитора","Наименование заемщика","ИНН заемщика","Остаток задолженности,\nтыс. руб.","Дата окончания договора","Ставка","Вид обеспечения","Рыночная стоимость обеспечения","Залоговая стоимость обеспечения"]
[]
[]
[]
[null,"ИТОГО",null,null,{"$f":"SUM(E36:E38)","v":0}]
[]
[null,"Комментарии:"]
[]
[]
[null,"Лизинг"]
[null,"Лизингодатель","ИНН лизингодателя","Дата окончания Договора лизинга","Валюта","Сумма лизинговых платежей по договору,\nтыс. руб.","Всего оплачено лизинговых платежей,\nтыс. руб."]
[]
[]
[]
[null,"ИТОГО",null,null,null,{"$f":"SUM(F46:F48)","v":0},{"$f":"SUM(G46:G48)","v":0}]
[]
[null,"Комментарии:"]
[]
[]
[null,"Факторинг"]
[null,"Факторинговая компания","ИНН факторинговой компании","Сумма лимита,\nтыс. руб.","Основные дебиторы (для регрессного) / поставщики (для безрегрессного)","ИНН","Задолженность на последнюю отчетную дату,\nтыс. руб.","Задолженность на текущую дату,\nтыс. руб.","Ставка,\n% годовых"]
[]
[]
[]
[null,"ИТОГО",null,{"$f":"SUM(D56:D58)","v":0},null,null,{"$f":"SUM(G56:G58)","v":0},{"$f":"SUM(H56:H58)","v":0}]
[]
[null,"Комментарии:"]
[]
[]
[null,"Наличие фактов предъявления банковской гарантии за последний отчетный квартал.",null,null,null,null,null,null,null,"Да"]
[]
[null,"Должностное лицо, уполномоченное руководителем организации для осуществления контактов с Банком:"]
[]
[]
[null," (Должность, Ф.И.О.)"]
[]
[null,null,null,"Рабочий тел.",null,"моб. тел.",null,"e-mail"]
[]
[]
[]
[null,"(Должность руководителя)",null,null,"(Ф.И.О. руководителя)",null,null,null,"(Подпись руководителя)"]
[]
[null,null,null,"Рабочий тел.",null,"моб. тел.",null,"e-mail"]
[]
[]
[]
[null,"(Должность гл. бухгалтера)",null,null,"(Ф.И.О. гл. бухгалтера)",null,null,null,"(Подпись гл. бухгалтера)"]
[]
[null,null,null,"Рабочий тел.",null,"моб. тел.",null,"e-mail"]
[]
[]
[null,null,"М.П.",null,null,null,null,null,null,"20__ г."]

{"sheet":"Прил.1","index":2,"n_rows":18,"n_cols":9,"rows_kept":18,"cut":false,"hidden":false,"merged":[[0,0,0,8]]}
["Чистый кредитовый оборот по счетам Поручителя (поступления выручки) за последние 12 месяцев - по месяц, предшествующий дате рассмотрения заявки на КК (тыс. руб.): "]
[]
["Месяц","БАНК 1","БАНК 2","БАНК 3","БАНК 4","БАНК 5","БАНК 6","БАНК 7","ИТОГО"]
[{"$f":"EDATE(form_date,-12)","v":{"$error":"#NUM!"}},null,null,null,null,null,null,null,{"$f":"SUM(B4:H4)","v":0}]
[{"$f":"EDATE(form_date,-11)","v":{"$error":"#NUM!"}},null,null,null,null,null,null,null,0]
[{"$f":"EDATE(form_date,-10)","v":{"$error":"#NUM!"}},null,null,null,null,null,null,null,0]
[{"$f":"EDATE(form_date,-9)","v":{"$error":"#NUM!"}},null,null,null,null,null,null,null,0]
[{"$f":"EDATE(form_date,-8)","v":{"$error":"#NUM!"}},null,null,null,null,null,null,null,0]
[{"$f":"EDATE(form_date,-7)","v":{"$error":"#NUM!"}},null,null,null,null,null,null,null,0]
[{"$f":"EDATE(form_date,-6)","v":{"$error":"#NUM!"}},null,null,null,null,null,null,null,0]
[{"$f":"EDATE(form_date,-5)","v":{"$error":"#NUM!"}},null,null,null,null,null,null,null,0]
[{"$f":"EDATE(form_date,-4)","v":{"$error":"#NUM!"}},null,null,null,null,null,null,null,0]
[{"$f":"EDATE(form_date,-3)","v":{"$error":"#NUM!"}},null,null,null,null,null,null,null,0]
[{"$f":"EDATE(form_date,-2)","v":{"$error":"#NUM!"}},null,null,null,null,null,null,null,0]
[{"$f":"EDATE(form_date,-1)","v":{"$error":"#NUM!"}},null,null,null,null,null,null,null,0]
["Итог",{"$f":"SUM(B4:B15)","v":0},{"$f":"SUM(C4:C15)","v":0},0,0,0,{"$f":"SUM(G4:G15)","v":0},0,0]
["Средний оборот",{"$f":"B$16/12","v":0},{"$f":"C$16/12","v":0},0,0,0,0,0,0]
["Доля оборотов, проводимых по банку, %",{"$f":"IFERROR(B$16/$I$16,0)","v":0},0,0,0,0,0,0,{"$f":"SUM(B18:H18)","v":0}]

{"sheet":"Прил.2","index":3,"n_rows":4,"n_cols":4,"rows_kept":4,"cut":false,"hidden":false,"merged":[[0,1,0,3],[2,1,2,3]]}
[null,"Приложение 2 к Заявке-Анкете"]
[]
[null,"Схема дочерних и зависимых компаний (Наименование компании и ИНН) входящих с юр.лицом, подавшим заявку, в состав финансово-промышленных групп и холдингов (в том числе неформальных)."]
[null,"Наименование компании","ИНН","Аффилированность\n(собственники/ экономические связи)"]

{"sheet":"Data","index":4,"n_rows":2,"n_cols":2,"rows_kept":2,"cut":false,"hidden":true,"merged":[]}
["dt_version",44497]
["dt_form_type"]

{"sheet":"Lists","index":5,"n_rows":18,"n_cols":10,"rows_kept":18,"cut":false,"hidden":true,"merged":[]}
["list_request_type","list_rating_moodys","list_rating_sp","list_rating_fitch","list_rating_ru","list_form_type","list_filename","list_acc_class","names_old","names_new"]
["Единовременный кредит","Aaa","AAA","AAA","ruAAA","ЗАЯВКА-АНКЕТА ЗАЕМЩИКА/ПРИНЦИПАЛА (ЮРИДИЧЕСКОГО ЛИЦА)","Заявка-Анкета Заемщика Принципала - ЮЛ (Шаблон)","Заемщика","validation_lic","validation_act_lic"]
["Возобновляемая кредитная линия","Aa1","AA+","AA+","ruAA+","АНКЕТА ПОРУЧИТЕЛЯ (ЮРИДИЧЕСКОГО ЛИЦА)","Анкета Поручителя - ЮЛ (Шаблон)","Поручителя","validation_rating","validation_act_rating"]
["Невозобновляемая кредитная линия","Aa2","AA","AA","ruAA","АНКЕТА ЗАЛОГОДАТЕЛЯ (ЮРИДИЧЕСКОГО ЛИЦА)","Анкета Залогодателя - ЮЛ (Шаблон)","Залогодателя","validation_debt","validation_other_debt"]
["Овердрафт","Aa3","AA-","AA-","ruAA-",null,null,null,"validation_fund","validation_other_fund"]
["Банковская гарантия","A1","A+","A+","ruA+",null,null,null,"rf_advantage","form_act_advantage"]
["Лимит выдачи банковских гарантий","A2","A","A","ruA",null,null,null,"rf_competitors","form_act_competitors"]
["Непокрытый аккредитив","A3","A-","A-","ruA-",null,null,null,"rf_conditions_ext","form_act_conditions_ext"]
["Аккредитив с постфинансированием","Baa1","BBB+","BBB+","ruBBB+",null,null,null,"rf_conditions_int","form_act_conditions_int"]
[null,"Baa2","BBB","BBB","ruBBB",null,null,null,"rf_debt","validation_other_debt"]
[null,"Baa3","BBB-","BBB-","ruBBB-",null,null,null,"rf_foreign","form_act_foreign"]
[null,"Ba1","BB+","BB+","ruBB+",null,null,null,"rf_import","form_act_import"]
[null,"Ba2","BB","BB","ruBB",null,null,null,"rf_industry","form_act_industry"]
[null,"Ba3","BB-","BB-","ruBB-",null,null,null,"rf_market","form_act_market"]
[null,null,null,null,"ruB+",null,null,null,"rf_mng_cm","form_mng_cm"]
[null,null,null,null,"ruB",null,null,null,"rf_org_description","form_act_org_description"]
[null,null,null,null,"ruB-",null,null,null,"rf_plans","form_act_plans"]
[null,null,null,null,null,null,null,null,"rf_profit","form_act_profit"]

{"sheet":"Fit","index":6,"n_rows":0,"n_cols":0,"rows_kept":0,"cut":false,"hidden":true,"merged":[]}